bitfinex-derivatives/quotes_BNBF0:USTF0_20230901
["timestamp","ask_amount","ask_price","bid_price","bid_amount"]
[1693584428171,0.17230956,213.84,212.99,0.15059763]
[1693584428172,0.17230956,213.84,213.07,0.86152734]
[1693584428470,0.17230956,213.84,213.08,0.86152734]
[1693584428666,0.17230956,213.84,213.05,0.86152734]
[1693584429269,0.17230956,213.84,213.03,0.07529881]
[1693584429270,0.17230956,213.84,213.06,0.86152734]
[1693584429470,0.17230956,213.85,213.04,0.86152734]
[1693584430269,0.17230956,213.85,213.05,0.86152734]
[1693584430465,0.17230956,213.85,213.03,0.86152734]
[1693584430671,0.17230956,213.85,213.04,0.86152734]
[1693584430865,0.17230956,213.85,213.03,0.86152734]
[1693584431071,0.17230956,213.85,213.04,0.86152734]
[1693584431266,0.17230956,213.85,213.02,0.86152734]
[1693584431464,0.17230956,213.85,213.03,0.86152734]
[1693584431665,0.17230956,213.85,213.04,0.86152734]
[1693584431871,0.17230956,213.85,213.02,0.86152734]
[1693584432072,0.17230956,213.85,213.03,0.86152734]
[1693584432272,0.17230956,213.86,213.01,0.86152734]
[1693584433174,0.17230956,213.85,213.01,0.86152734]
[1693584433376,0.17230956,213.87,213.01,0.86152734]
[1693584433674,0.17230956,213.86,213.01,0.86152734]
[1693584433873,0.17230956,213.87,213.01,0.86152734]
[1693584436078,0.17230956,213.87,213.01,0.93682615]
[1693584436279,0.17230956,213.86,213.02,0.86152734]
[1693584436478,0.17230956,213.88,213.02,0.93682615]
[1693584436679,0.17230956,213.87,213.03,0.86152734]
[1693584436883,0.17230956,213.88,213.03,0.86152734]
[1693584438180,5.18176065,213.88,213.03,0.93682615]
[1693584438380,0.17230956,213.87,213.04,0.86152734]
[1693584438983,0.17230956,213.87,213.05,0.86152734]
[1693584439281,0.17230956,213.87,213.06,0.86152734]
[1693584439485,0.17230956,213.87,213.03,0.93682615]
[1693584439777,5.18176065,213.87,213.04,0.86152734]
[1693584439981,0.17230956,213.86,213.04,0.86152734]
[1693584441184,0.17230956,213.86,213.04,0.93682615]
[1693584441382,5.18176065,213.86,213.05,0.86152734]
[1693584441576,0.17230956,213.85,213.05,0.86152734]
[1693584441783,5.18176065,213.85,213.05,0.86152734]
[1693584442084,0.17230956,213.84,213.05,0.86152734]
[1693584442277,0.17230956,213.84,213.06,0.07529881]
[1693584442479,0.17230956,213.84,213.07,0.86152734]
[1693584443283,5.18176065,213.84,213.07,0.86152734]
[1693584443583,0.17230956,213.83,213.07,0.86152734]
[1693584444384,0.17230956,213.83,213.08,0.07529881]
[1693584444580,5.00945109,213.82,213.09,0.86152734]
[1693584444784,0.17230956,213.81,213.09,0.86152734]
[1693584445285,0.17230956,213.81,213.11,0.07529881]
[1693584445486,5.00945109,213.79,213.12,0.93682615]
[1693584445682,0.17230956,213.78,213.17,0.07529881]
[1693584445885,0.17230956,213.83,213.18,0.86152734]
[1693584446185,0.17230956,213.82,213.18,0.86152734]
[1693584446384,0.17230956,213.83,213.18,0.86152734]
[1693584446580,0.17230956,213.82,213.18,0.86152734]
[1693584446784,0.17230956,213.83,213.18,0.86152734]
[1693584447285,5.00945109,213.79,213.22,0.07529881]
[1693584447486,0.17230956,213.78,213.21,0.07529881]
[1693584447688,0.17230956,213.78,213.22,0.86160573]
[1693584447989,0.17230956,213.78,213.22,0.93690454]
[1693584448181,0.17230956,213.78,213.22,0.07529881]
[1693584448581,5.18176065,213.78,213.22,0.07529881]
[1693584448782,0.17230956,213.77,213.22,0.07529881]
[1693584449387,0.17230956,213.77,213.23,0.07529881]
[1693584449588,5.18176065,213.77,213.23,0.07529881]
[1693584449781,0.17230956,213.76,213.22,0.07529881]
[1693584449984,0.17230956,213.76,212.83,2.50996064]
[1693584449985,0.17230956,213.76,213.18,0.07529881]
[1693584450188,0.17230956,213.76,213.17,0.07529881]
[1693584451088,5.00945109,213.72,213.17,0.07529881]
[1693584451288,5.00945109,213.72,213.18,0.07529881]
[1693584451289,0.17230956,213.71,213.18,0.07529881]
[1693584452488,5.18176065,213.71,213.18,0.07529881]
[1693584452689,0.17230956,213.7,213.18,0.07529881]
[1693584455894,0.17230956,213.7,213.19,0.07529881]
[1693584456093,5.00945109,213.72,213.19,0.07529881]
[1693584456094,0.17230956,213.69,213.19,0.07529881]
[1693584456391,0.17230956,213.68,213.19,0.07529881]
[1693584456592,0.17230956,213.67,213.19,0.07529881]
[1693584456792,0.17230956,213.71,213.19,0.07529881]
[1693584456996,0.17230956,213.7,213.19,0.07529881]
[1693584457194,0.17230956,213.71,213.19,0.07529881]
[1693584457394,0.17230956,213.7,213.19,0.07529881]
[1693584457597,0.17230956,213.69,213.2,0.07529881]
[1693584457793,0.17230956,213.68,213.2,0.07529881]
[1693584457993,0.17230956,213.67,213.2,0.07529881]
[1693584458193,0.17230956,213.66,213.2,0.07529881]
[1693584458399,0.17230956,213.65,213.2,0.07529881]
[1693584458595,5.18176065,213.71,213.2,0.07529881]
[1693584458796,0.17230956,213.7,213.2,0.07529881]
[1693584460992,0.17230956,213.7,213.21,0.07529881]
[1693584461398,5.18176065,213.7,213.21,0.07529881]
[1693584461701,0.17230956,213.69,213.21,0.07529881]
[1693584463001,5.18176065,213.69,213.21,0.07529881]
[1693584463204,0.17230956,213.68,213.21,0.07529881]
[1693584467310,0.17230956,213.68,213.2,0.07529881]
[1693584467509,5.18176065,213.68,213.2,0.07529881]
[1693584467704,0.17230956,213.67,213.2,0.07529881]
[1693584469309,5.00945109,213.66,213.19,0.07529881]
[1693584469609,0.17230956,213.65,213.19,0.07529881]
[1693584470209,5.00945109,213.64,213.17,0.07529881]
[1693584470409,0.17230956,213.63,213.17,0.07529881]
[1693584472310,0.17230956,213.63,213.14,0.07529881]
[1693584472711,0.17230956,213.63,213.13,0.07529881]
[1693584472912,0.17230956,213.63,213.14,0.86186161]
[1693584473315,7.18554109,213.63,213.14,0.86186161]
[1693584473517,5.00945109,213.61,213.14,0.86186161]
[1693584473713,0.17230956,213.6,213.14,0.86186161]
[1693584474412,0.17230956,213.6,213.12,0.07529881]
[1693584474413,0.17230956,213.6,213.13,0.86186161]
[1693584474708,5.18176065,213.6,213.14,0.86186638]
[1693584474912,0.17230956,213.59,213.13,0.86186638]
[1693584475117,0.17230956,213.59,213.14,0.86186457]
[1693584475415,0.17230956,213.59,213.12,0.07529881]
[1693584475617,0.17230956,213.59,213.13,0.86186451]
[1693584477518,5.18176065,213.59,213.12,0.93716332]
[1693584477720,0.17230956,213.58,213.13,0.86186451]
[1693584477914,0.17230956,213.59,213.13,0.93716332]
[1693584478115,0.17230956,213.58,213.14,0.86186451]
[1693584478317,0.17230956,213.57,213.15,0.86186451]
[1693584478515,0.17230956,213.59,213.13,0.86186451]
[1693584478714,0.17230956,213.58,213.14,0.86181984]
[1693584478914,0.17230956,213.57,213.14,0.86181984]
[1693584479121,0.17230956,213.56,213.14,0.86181984]
[1693584479323,0.17230956,213.59,213.14,0.86181984]
[1693584479621,0.17230956,213.58,213.14,0.86181984]
[1693584479820,0.17230956,213.57,213.12,0.07529881]
[1693584480023,0.17230956,213.59,213.13,0.86184313]
[1693584480221,0.17230956,213.58,213.13,0.86184313]
[1693584480422,0.17230956,213.57,213.13,0.86184313]
[1693584480621,0.17230956,213.56,213.13,0.86184313]
[1693584480823,0.17230956,213.55,213.13,0.86184313]
[1693584481023,5.18176065,213.59,213.13,0.93714194]
[1693584481223,0.17230956,213.58,213.14,0.86184313]
[1693584482722,0.17230956,213.58,213.14,0.93714194]
[1693584482921,5.18176065,213.58,213.15,0.93714194]
[1693584483128,0.17230956,213.57,213.15,0.07529881]
[1693584483629,0.17230956,213.56,213.15,0.07529881]
[1693584483826,0.17230956,213.55,213.17,0.07529881]
[1693584484026,0.17230956,213.54,213.17,0.07529881]
[1693584484226,0.17230956,213.53,213.17,0.07529881]
[1693584484422,0.17230956,213.52,213.17,0.07529881]
[1693584484622,0.17230956,213.56,213.17,0.07529881]
[1693584484823,0.17230956,213.55,213.17,0.07529881]
[1693584485029,0.17230956,213.56,213.17,0.07529881]
[1693584485227,0.17230956,213.55,213.17,0.07529881]
[1693584485428,0.17230956,213.56,213.17,0.07529881]
[1693584485622,0.17230956,213.55,213.17,0.07529881]
[1693584485826,0.17230956,213.54,213.17,0.07529881]
[1693584486027,0.17230956,213.56,213.17,0.07529881]
[1693584486228,0.17230956,213.55,213.17,0.07529881]
[1693584486425,0.17230956,213.57,213.17,0.07529881]
[1693584486630,0.17230956,213.56,213.17,0.07529881]
[1693584486929,0.17230956,213.55,213.17,0.07529881]
[1693584487129,0.17230956,213.54,213.17,0.07529881]
[1693584487325,0.17230956,213.57,213.17,0.07529881]
[1693584487530,0.17230956,213.56,213.17,0.07529881]
[1693584487732,0.17230956,213.55,213.17,0.07529881]
[1693584487932,0.17230956,213.54,213.17,0.07529881]
[1693584488135,0.17230956,213.53,213.17,0.07529881]
[1693584488332,0.17230956,213.52,213.17,0.07529881]
[1693584488536,0.17230956,213.51,213.17,0.07529881]
[1693584488838,0.17230956,213.5,213.17,0.07529881]
[1693584489134,0.17230956,213.49,213.17,0.07529881]
[1693584489338,0.17230956,213.48,213.17,0.07529881]
[1693584489537,0.17230956,213.57,213.17,0.07529881]
[1693584489738,0.17235774,213.56,213.17,0.07529881]
[1693584490037,0.17235774,213.55,213.17,0.07529881]
[1693584490239,0.17235774,213.54,213.17,0.07529881]
[1693584490431,0.17235774,213.57,213.17,0.07529881]
[1693584490635,0.17235774,213.56,213.17,0.07529881]
[1693584490830,0.17235774,213.57,213.17,0.07529881]
[1693584491040,0.17235774,213.56,213.17,0.07529881]
[1693584491333,0.17235774,213.55,213.17,0.07529881]
[1693584491537,0.17235774,213.54,213.17,0.07529881]
[1693584491739,5.00945109,213.58,213.17,0.07529881]
[1693584491740,0.17235774,213.53,213.17,0.07529881]
[1693584492037,0.17235774,213.52,213.17,0.07529881]
[1693584492231,5.00945109,213.58,213.17,0.07529881]
[1693584492232,0.17235774,213.51,213.17,0.07529881]
[1693584492434,0.17235774,213.5,213.17,0.07529881]
[1693584492638,0.17235774,213.49,213.17,0.07529881]
[1693584492838,0.17235774,213.48,213.17,0.07529881]
[1693584493032,0.17235774,213.48,213.1,0.15059763]
[1693584493033,0.17235774,213.47,213.16,0.07529881]
[1693584493232,5.00945109,213.58,213.16,0.07529881]
[1693584493437,0.17236556,213.57,213.16,0.07529881]
[1693584494438,5.18181665,213.57,213.16,0.07529881]
[1693584494640,0.17236556,213.56,213.16,0.07529881]
[1693584496440,0.17236556,213.56,213.15,0.07529881]
[1693584497441,5.18181665,213.56,213.15,0.07529881]
[1693584497641,0.17236556,213.55,213.15,0.07529881]
[1693584499043,0.17236556,213.55,213.14,0.07529881]
[1693584508351,0.17236556,213.55,213.13,0.07529881]
[1693584516456,0.17236556,213.55,213.12,0.07529881]
[1693584516657,0.17236556,213.55,213.13,0.86189714]
[1693584517458,0.17236556,213.55,213.13,0.93719595]
[1693584517655,0.17236556,213.55,213.13,0.07529881]
[1693584518356,0.17236556,213.55,213.06,0.15059763]
[1693584518357,0.17236556,213.55,213.12,0.07529881]
[1693584518557,0.17236556,213.55,213.13,0.86189132]
[1693584519156,0.17236556,213.55,213.13,0.93719013]
[1693584519358,0.17236556,213.55,213.13,0.07529881]
[1693584519559,0.17236556,213.55,213.12,0.07529881]
[1693584519753,0.17236556,213.55,213.13,0.86189012]
[1693584521664,0.17236556,213.55,213.12,0.07529881]
[1693584521868,0.17236556,213.55,213.11,0.07529881]
[1693584522070,5.18181665,213.55,213.11,0.07529881]
[1693584522367,0.17236556,213.54,213.11,0.07529881]
[1693584523365,0.17236556,213.54,213.1,0.07529881]
[1693584523668,0.17236556,213.54,213.11,0.86195527]
[1693584524160,0.17236556,213.54,213.11,0.93725408]
[1693584524362,0.17236556,213.54,213.11,0.07529881]
[1693584524560,0.17236556,213.54,213.07,0.07529881]
[1693584524765,0.17236556,213.54,213.06,0.07529881]
[1693584525372,0.17236556,213.54,213.05,0.07529881]
[1693584525568,5.00945109,213.52,213.06,0.8621723]
[1693584525765,0.17236556,213.51,213.06,0.8621723]
[1693584526365,0.17236556,213.52,213.05,0.8621723]
[1693584528366,0.17236556,213.53,213.04,0.8621723]
[1693584528569,0.17236556,213.52,213.05,0.8621723]
[1693584528769,0.17236556,213.51,213.06,0.8621723]
[1693584528970,0.17236556,213.53,213.04,0.8621723]
[1693584529269,0.17236556,213.52,213.05,0.8621723]
[1693584529470,0.17236556,213.53,213.04,0.8621723]
[1693584529671,0.17236556,213.52,213.05,0.8621723]
[1693584529872,0.17236556,213.53,213.04,0.8621723]
[1693584530171,0.17236556,213.52,213.05,0.8621723]
[1693584530371,0.17236556,213.51,213.06,0.8621723]
[1693584530567,0.17236556,213.53,213.07,0.8621723]
[1693584530767,0.17236556,213.52,213.04,0.8621723]
[1693584531071,0.17236556,213.51,213.05,0.86215657]
[1693584531273,0.17236556,213.53,213.04,0.86215657]
[1693584531573,0.17236556,213.52,213.05,0.86215657]
[1693584531778,0.17236556,213.55,213.04,0.86215657]
[1693584532074,0.17236556,213.55,213.04,0.93745538]
[1693584532373,0.17236556,213.55,213.05,0.86215657]
[1693584532773,0.17236556,213.56,213.05,0.86215657]
[1693584532972,0.17236556,213.55,213.05,0.86215657]
[1693584533172,0.17236556,213.56,213.05,0.86215657]
[1693584536380,0.17236556,213.56,213.04,0.86215657]
[1693584536578,0.17236556,213.56,213.05,0.86215657]
[1693584536779,0.17236556,213.56,213.04,0.86215657]
[1693584537082,0.17236556,213.56,213.05,0.86215657]
[1693584537380,0.17236556,213.56,213.06,0.86215657]
[1693584537581,0.17236556,213.56,213.04,0.86215657]
[1693584537781,0.17236556,213.56,213.05,0.86215657]
[1693584538081,0.17236556,213.56,213.06,0.86215657]
[1693584538282,0.17236556,213.56,213.04,0.86215657]
[1693584538580,0.17236556,213.56,213.05,0.86215657]
[1693584538775,0.17236556,213.56,213.04,0.86215657]
[1693584538981,0.17236556,213.56,213.05,0.86215657]
[1693584539177,0.17236556,213.56,213.04,0.86215657]
[1693584539383,0.17236556,213.56,213.05,0.86215657]
[1693584539685,0.17236556,213.56,213.06,0.86215657]
[1693584539876,0.17236556,213.56,213.04,0.86215657]
[1693584540080,0.17236556,213.56,213.05,0.86215657]
[1693584540280,0.17236556,213.56,213.04,0.86215657]
[1693584540478,0.17236556,213.56,213.06,0.86215657]
[1693584540679,0.17236556,213.56,213.05,0.86215657]
[1693584541283,0.17236556,213.57,213.05,0.86215657]
[1693584544782,0.17236556,213.57,213.06,0.86215657]
[1693584544988,5.18181665,213.57,213.03,0.07529881]
[1693584545179,0.17236556,213.56,213.04,0.86217209]
[1693584548287,0.17236556,213.56,213.04,0.9374709]
[1693584548483,0.17236556,213.56,213.05,0.86217209]
[1693584550385,5.18181665,213.56,213.05,0.86217209]
[1693584550591,0.17236556,213.55,213.05,0.86217209]
[1693584551192,0.17236556,213.55,213.05,0.9374709]
[1693584551391,0.17236556,213.55,213.06,0.86217209]
[1693584553286,0.17236556,213.55,213.06,0.9374709]
[1693584553491,5.18181665,213.55,213.07,0.86217209]
[1693584553684,0.17236556,213.54,213.07,0.86217209]
[1693584554286,5.18181665,213.54,213.07,0.86217209]
[1693584554490,0.17236556,213.53,213.07,0.86217209]
[1693584555192,5.18181665,213.53,213.07,0.9374709]
[1693584555384,0.17236556,213.52,213.07,0.07529881]
[1693584555689,0.17236556,213.52,213.08,0.07529881]
[1693584557087,5.18181665,213.52,213.08,0.07529881]
[1693584557290,0.17236556,213.51,213.08,0.07529881]
[1693584558294,5.00945109,213.5,213.1,0.07529881]
[1693584558494,0.17236556,213.49,213.1,0.07529881]
[1693584560000,0.17236556,213.49,213.09,0.07529881]
[1693584560800,0.17236556,213.49,213.08,0.07529881]
[1693584561097,5.00945109,213.48,213.08,0.07529881]
[1693584561299,0.17236556,213.47,213.08,0.07529881]
[1693584561999,0.17236556,213.46,213.08,0.07529881]
[1693584562192,0.17236556,213.48,213.08,0.07529881]
[1693584562397,0.17236556,213.47,213.08,0.07529881]
[1693584562601,0.17236556,213.48,213.08,0.07529881]
[1693584562799,0.17236556,213.47,213.08,0.07529881]
[1693584562998,0.17236556,213.48,213.08,0.07529881]
[1693584563196,0.17236556,213.47,213.08,0.07529881]
[1693584563394,0.17236556,213.46,213.08,0.07529881]
[1693584563601,0.17236556,213.48,213.08,0.07529881]
[1693584563796,0.17236556,213.47,213.08,0.07529881]
[1693584563999,0.17236556,213.48,213.08,0.07529881]
[1693584564198,0.17236556,213.47,213.08,0.07529881]
[1693584564398,0.17236556,213.46,213.08,0.07529881]
[1693584564597,0.17236556,213.45,213.08,0.07529881]
[1693584564804,0.17236556,213.44,213.08,0.07529881]
[1693584564999,0.17236556,213.48,213.08,0.07529881]
[1693584565204,0.17236556,213.47,213.08,0.07529881]
[1693584565503,0.17236556,213.46,213.08,0.07529881]
[1693584565703,0.17236556,213.48,213.07,0.07529881]
[1693584565899,0.17236556,213.47,213.07,0.07529881]
[1693584566104,0.17236556,213.46,213.07,0.07529881]
[1693584566406,0.17236556,213.45,213.07,0.07529881]
[1693584566605,0.17236556,213.48,213.07,0.07529881]
[1693584566800,0.17236556,213.47,213.07,0.07529881]
[1693584567005,0.17236556,213.48,213.07,0.07529881]
[1693584567204,0.17236556,213.47,213.06,0.07529881]
[1693584567404,0.17236556,213.48,213.06,0.07529881]
[1693584567600,0.17236556,213.47,213.06,0.07529881]
[1693584567804,0.17236556,213.46,213.06,0.07529881]
[1693584568005,0.17236556,213.45,213.06,0.07529881]
[1693584568208,0.17236556,213.44,213.06,0.07529881]
[1693584568400,0.17236556,213.47,213.06,0.07529881]
[1693584568605,0.17236556,213.46,213.06,0.07529881]
[1693584568906,0.17236556,213.45,213.06,0.07529881]
[1693584569111,0.17236556,213.47,213.06,0.07529881]
[1693584569406,0.17236556,213.46,213.06,0.07529881]
[1693584569606,0.17236556,213.45,213.06,0.07529881]
[1693584569806,0.17236556,213.47,213.05,0.07529881]
[1693584570006,0.17236556,213.46,213.05,0.07529881]
[1693584570201,0.17236556,213.47,213.05,0.07529881]
[1693584570407,0.17236556,213.46,213.05,0.07529881]
[1693584570602,0.17236556,213.45,213.05,0.07529881]
[1693584570806,0.17236556,213.47,213.05,0.07529881]
[1693584571108,0.17236556,213.46,213.05,0.07529881]
[1693584571311,0.17236556,213.47,213.05,0.07529881]
[1693584571903,0.17236556,213.47,213.04,0.07529881]
[1693584573607,5.18181665,213.47,213.03,0.07529881]
[1693584573810,0.17236556,213.46,213.03,0.07529881]
[1693584574907,0.17236556,213.46,213.02,0.07529881]
[1693584575710,0.17236556,213.46,213.01,0.07529881]
[1693584575907,0.17236556,213.46,213.02,0.86231723]
[1693584576316,0.17236556,213.46,213.01,0.07529881]
[1693584577317,0.17236556,213.46,213.02,0.86230908]
[1693584578417,0.17236556,213.46,213.0,0.07529881]
[1693584578714,0.17236556,213.46,213.01,0.86230225]
[1693584580516,0.17236556,213.46,213.0,0.86230225]
[1693584580715,0.17236556,213.46,213.01,0.86231671]
[1693584580912,0.17236556,213.46,212.99,0.07529881]
[1693584581113,0.17236556,213.46,213.0,0.86231486]
[1693584583220,0.17236556,213.46,213.0,0.93761367]
[1693584583421,0.17236556,213.46,213.01,0.86231486]
[1693584583619,0.17236556,213.45,213.01,0.86231486]
[1693584583820,0.17236556,213.47,213.01,0.86231486]
[1693584584024,0.17236556,213.46,213.01,0.86231486]
[1693584584224,0.17236556,213.45,213.01,0.86231486]
[1693584584422,0.17236556,213.44,213.01,0.86231486]
[1693584584623,0.17236556,213.43,213.01,0.86231486]
[1693584584824,0.17236556,213.47,213.01,0.86231486]
[1693584585024,0.17236556,213.46,213.01,0.86231486]
[1693584585325,0.17236556,213.45,213.01,0.86231486]
[1693584585526,0.17236556,213.44,213.01,0.86231486]
[1693584585727,0.17236556,213.43,213.01,0.86231486]
[1693584585922,0.17236556,213.47,213.01,0.86231486]
[1693584586225,0.17236556,213.46,213.01,0.86231486]
[1693584586524,0.17236556,213.45,213.01,0.86231486]
[1693584586725,0.17236556,213.44,213.01,0.86231486]
[1693584586926,0.17236556,213.47,213.01,0.86231486]
[1693584587127,0.17236556,213.46,213.01,0.86231486]
[1693584587320,0.17236556,213.45,213.01,0.86231486]
[1693584587523,0.17236556,213.47,213.01,0.86231486]
[1693584587724,0.17236556,213.46,213.01,0.86231486]
[1693584587925,0.17236556,213.47,213.01,0.86231486]
[1693584588225,0.17236556,213.46,213.01,0.86231486]
[1693584588426,0.17236556,213.45,213.01,0.86231486]
[1693584588629,0.17236556,213.44,213.01,0.86231486]
[1693584588823,0.17236556,213.43,212.99,0.07529881]
[1693584589027,0.17236556,213.42,213.0,0.86232067]
[1693584589228,0.17236556,213.46,213.0,0.86232067]
[1693584589423,0.17236556,213.45,213.0,0.86232067]
[1693584589623,0.17236556,213.44,213.0,0.86232067]
[1693584589824,0.17236556,213.46,213.0,0.86232067]
[1693584590024,0.17236556,213.45,213.0,0.86232067]
[1693584592935,0.17236556,213.45,212.99,0.86232067]
[1693584593134,0.17236556,213.45,213.0,0.86237168]
[1693584593330,0.17236556,213.45,212.98,0.07529881]
[1693584593531,0.17236556,213.45,212.99,0.86237132]
[1693584593737,0.17236556,213.45,212.99,0.93767013]
[1693584593933,5.18181665,213.45,213.0,0.86237132]
[1693584594136,0.17236556,213.44,213.0,0.86237132]
[1693584596035,0.17236556,213.44,212.99,0.86237132]
[1693584596237,0.17236556,213.44,213.0,0.8623796]
[1693584596437,0.17236556,213.44,212.99,0.8623796]
[1693584596634,0.17236556,213.44,213.0,0.86238437]
[1693584596835,0.17236556,213.44,212.98,0.07529881]
[1693584597035,0.17236556,213.44,212.99,0.8623818]
[1693584597635,0.17236556,213.44,212.99,0.93768061]
[1693584597836,0.17236556,213.44,213.0,0.8623818]
[1693584598939,0.17236556,213.44,212.98,0.07529881]
[1693584599141,0.17236556,213.44,212.99,0.86238002]
[1693584599339,0.17236556,213.44,212.99,0.93767883]
[1693584599540,0.17236556,213.44,213.0,0.86238002]
[1693584600845,0.17236556,213.44,213.0,0.93767883]
[1693584601043,0.17236556,213.44,213.0,0.07529881]
[1693584601241,0.17236556,213.44,213.01,0.86237701]
[1693584601542,0.17236556,213.44,213.0,0.07529881]
[1693584601742,0.17236556,213.44,213.01,0.86237759]
[1693584603343,5.18181665,213.44,213.01,0.86237759]
[1693584603541,0.17236556,213.43,213.01,0.86237759]
[1693584604135,0.17236556,213.42,213.01,0.86237759]
[1693584604341,0.17236556,213.41,213.01,0.9376764]
[1693584604537,0.17236556,213.4,213.01,0.07529881]
[1693584604744,0.17236556,213.39,213.01,0.07529881]
[1693584604948,0.17236556,213.44,213.01,0.07529881]
[1693584605244,0.17236556,213.43,213.01,0.07529881]
[1693584608843,5.18181665,213.43,213.01,0.07529881]
[1693584609042,0.17236556,213.42,213.01,0.07529881]
[1693584611250,0.17236556,213.42,213.02,0.07529881]
[1693584611548,0.17236556,213.42,212.88,6.10088285]
[1693584611549,0.17236556,213.42,213.03,0.07529881]
[1693584612351,0.17236556,213.41,213.03,0.07529881]
[1693584612550,0.17236556,213.44,213.03,0.07529881]
[1693584612748,0.17236556,213.43,213.03,0.07529881]
[1693584612951,0.17236556,213.42,213.03,0.07529881]
[1693584613152,0.17236556,213.45,213.03,0.07529881]
[1693584613346,0.17236556,213.44,213.03,0.07529881]
[1693584613549,0.17236556,213.43,213.03,0.07529881]
[1693584613748,0.17236556,213.45,213.03,0.07529881]
[1693584613953,0.17236556,213.44,213.03,0.07529881]
[1693584614147,0.17236556,213.45,213.03,0.07529881]
[1693584614347,0.17236556,213.44,213.03,0.07529881]
[1693584614553,0.17236556,213.43,213.03,0.07529881]
[1693584614749,0.17236556,213.45,213.03,0.07529881]
[1693584614954,0.17236556,213.42,213.03,0.07529881]
[1693584615249,0.17236556,213.41,213.03,0.07529881]
[1693584615456,0.17236556,213.4,213.03,0.07529881]
[1693584615653,0.17236556,213.39,213.03,0.07529881]
[1693584615849,0.17236556,213.45,213.03,0.07529881]
[1693584616050,0.17236556,213.44,213.03,0.07529881]
[1693584616248,0.17236556,213.43,213.03,0.07529881]
[1693584616448,0.17236556,213.42,213.03,0.07529881]
[1693584616753,0.17236556,213.41,213.03,0.07529881]
[1693584616948,0.17236556,213.46,213.03,0.07529881]
[1693584617154,0.17236556,213.45,213.03,0.07529881]
[1693584617357,0.17236556,213.46,213.03,0.07529881]
[1693584617555,0.17236556,213.45,213.03,0.07529881]
[1693584617754,0.17236556,213.44,213.01,0.07529881]
[1693584617953,0.17236556,213.46,213.01,0.07529881]
[1693584618255,0.17236556,213.45,213.01,0.07529881]
[1693584618453,5.00945109,213.45,213.01,0.07529881]
[1693584618651,0.17236556,213.44,213.01,0.07529881]
[1693584620356,5.18181665,213.44,213.01,0.07529881]
[1693584620550,0.17236556,213.43,213.01,0.07529881]
[1693584621357,0.17236556,213.43,213.0,0.07529881]
[1693584625051,5.18181665,213.43,213.0,0.07529881]
[1693584625255,0.17236556,213.42,213.0,0.07529881]
[1693584625758,0.17236556,213.43,213.0,0.07529881]
[1693584625955,0.17236556,213.42,213.0,0.07529881]
[1693584626158,0.17236556,213.43,213.0,0.07529881]
[1693584626355,0.17236556,213.42,213.0,0.07529881]
[1693584626554,0.17236556,213.41,213.0,0.07529881]
[1693584626755,0.17236556,213.43,213.0,0.07529881]
[1693584626956,0.17236556,213.42,213.0,0.07529881]
[1693584629662,0.17236556,213.42,212.99,0.07529881]
[1693584629857,0.17236556,213.42,213.0,0.86240641]
[1693584633062,0.17236556,213.42,213.0,0.93770522]
[1693584633258,0.17236556,213.42,213.0,0.07529881]
[1693584634162,0.17236556,213.42,212.99,0.07529881]
[1693584634362,0.17236556,213.42,213.0,0.86241194]
[1693584634961,0.17236556,213.42,212.99,0.07529881]
[1693584635162,0.17236556,213.42,213.0,0.86241244]
[1693584636164,0.17236556,213.42,212.99,0.07529881]
[1693584636863,0.17236556,213.42,213.0,0.86241287]
[1693584637160,0.17236556,213.42,212.92,0.07529881]
[1693584637358,5.00945109,213.36,212.92,0.07529881]
[1693584637560,0.17236556,213.35,212.92,0.07529881]
[1693584638359,0.17236556,213.35,212.9,0.07529881]
[1693584638563,0.17236556,213.34,212.91,0.86275043]
[1693584638762,0.17236556,213.37,212.91,0.86275043]
[1693584639062,0.17236556,213.36,212.91,0.86275043]
[1693584639260,0.17236556,213.37,212.91,0.86275043]
[1693584639463,0.17236556,213.36,212.91,0.86275043]
[1693584639663,0.17236556,213.35,212.92,0.86275043]
[1693584639858,0.17236556,213.39,212.9,0.86275043]
[1693584640061,0.17236556,213.38,212.91,0.86275043]
[1693584640266,0.17236556,213.37,212.92,0.86275043]
[1693584640565,0.17236556,213.36,212.93,0.86275043]
[1693584640868,0.17236556,213.35,212.89,0.07529881]
[1693584641064,0.17236556,213.34,212.9,0.86273558]
[1693584641259,0.17236556,213.33,212.9,0.86273558]
[1693584641462,0.17236556,213.32,212.9,0.86273558]
[1693584641659,0.17236556,213.32,212.88,0.07529881]
[1693584641660,0.17236556,213.31,212.91,0.86273558]
[1693584641869,0.17236556,213.3,212.92,0.86273558]
[1693584642163,0.17236556,213.29,212.93,0.86273558]
[1693584642366,0.17236556,213.28,212.88,0.07529881]
[1693584642562,0.17236556,213.27,212.89,0.86272314]
[1693584642761,0.17236556,213.42,212.89,0.86272314]
[1693584643065,0.17236556,213.41,212.89,0.86272314]
[1693584643364,0.17236556,213.4,212.89,0.86272314]
[1693584643566,0.17236556,213.42,212.89,0.86272314]
[1693584643766,0.17236556,213.41,212.89,0.86272314]
[1693584643968,0.17236556,213.4,212.89,0.86272314]
[1693584644168,0.17236556,213.39,212.89,0.93802195]
[1693584644369,0.17236556,213.43,212.9,0.86272314]
[1693584644669,0.17236556,213.42,212.91,0.86272314]
[1693584644865,0.17236556,213.43,212.89,0.86272314]